[Event "WYCC 2018 O18"]
[Site "Halkidiki"]
[Date "2018.10.27"]
[Round "8"]
[White "Le, Minh Hoang"]
[Black "Wang, Shixu B"]
[Result "0-1"]
[ECO "D02"]
[WhiteElo "2271"]
[BlackElo "2330"]
[Annotator "NA"]
[PlyCount "72"]
[EventDate "2018.10.20"]
[EventType "swiss"]
[EventCountry "GRE"]
[SourceTitle "playchess.com"]
[Source "ChessBase"]
[SourceQuality "1"]
[TimeControl "40/5400+30:1800+30"]

1. Nf3 {[%emt 0:00:00]} d5 {[%emt 0:00:00]} 2. d4 {[%emt 0:00:00]} Nf6 {[%emt 0:00:00]} 3. g3 {[%emt 0:00:00]} Bf5 {[%emt 0:00:42]} 4. Bg2 {[%emt 0:00:00]} e6 {[%emt 0:00:06]} 5. O-O {[%emt 0:00:09]} Nbd7 {[%emt 0:01:20]} 6. c4 {[%emt 0:00:10]} c6 {[%emt 0:00:13]} 7. Nc3 {[%emt 0:01:15]} Be7 {[%emt 0:02:34]} 8. Qb3 {[%emt 0:09:29]} Qb6 {[%emt 0:03:35]} 9. c5 {[%emt 0:01:22]} Qc7 $14 {[%emt 0:05:18]} 10. Bf4 {[%emt 0:00:16]} Qc8 {[%emt 0:00:04]} 11. Nh4 {[%emt 0:01:35]} Be4 {[%emt 0:03:59]} 12. f3 {[%emt 0:02:23]} Bg6 {[%emt 0:00:26]} 13. Nxg6 {[%emt 0:01:58]} hxg6 {[%emt 0:00:04]} 14. Bd6 {[%emt 0:05:10]} Bxd6 {[%emt 0:03:44]} 15. cxd6 {[%emt 0:00:04]} Qb8 {[%emt 0:10:48]} 16. e4 {[%emt 0:04:41]} dxe4 {[%emt 0:00:17]} 17. fxe4 {[%emt 0:00:11]} Qxd6 {[%emt 0:01:27]} 18. Rad1 {[%emt 0:00:08]} e5 {[%emt 0:23:56]} 19. Qxb7 {[%emt 0:06:26]} O-O {[%emt 0:02:29]} 20. d5 {[%emt 0:04:46]} cxd5 {[%emt 0:01:52]} 21. Nxd5 {[%emt 0:01:17]} Qc5+ {[%emt 0:00:58]} 22. Kh1 {[%emt 0:00:11]} Rab8 {[%emt 0:01:14]} 23. b4 {[%emt 0:06:18]} Rxb7 {[%emt 0:00:36]} 24. bxc5 {[%emt 0:00:21]} Nxc5 {[%emt 0:00:08]} 25. Nxf6+ {[%emt 0:00:10]} gxf6 {[%emt 0:00:01]} 26. Rxf6 {[%emt 0:00:06]} Rb2 {[%emt 0:04:13]} 27. Rc6 {[%emt 0:08:47]} Ne6 {[%emt 0:02:05]} 28. Ra6 {[%emt 0:01:07]} Rc8 {[%emt 0:00:21]} 29. Bh3 {[%emt 0:00:52]} Ng5 {[%emt 0:02:04]} 30. Bg2 {[%emt 0:20:31]} Rcc2 {[%emt 0:00:06]} 31. h4 {[%emt 0:00:07]} Ne6 {[%emt 0:00:27]} 32. Bf1 {[%emt 0:01:43]} Nd4 {[%emt 0:00:43]} 33. Ra3 {[%emt 0:01:15]} Rf2 {[%emt 0:00:25]} 34. Rc1 {[%emt 0:02:20]} Kg7 {[%emt 0:00:26]} 35. Re3 {[%emt 0:06:09]} Kh6 {[%emt 0:00:55]} 36. g4 {[%emt 0:02:57]} Nf3 {[%emt 0:00:55]} 0-1

[Event "WYCC 2018 O18"]
[Site "Halkidiki"]
[Date "2018.10.27"]
[Round "8"]
[White "Beukema, Jasper"]
[Black "Pobor, Danilo"]
[Result "1-0"]
[ECO "D53"]
[WhiteElo "2256"]
[BlackElo "1934"]
[Annotator "NA"]
[PlyCount "65"]
[EventDate "2018.10.20"]
[EventType "swiss"]
[EventCountry "GRE"]
[SourceTitle "playchess.com"]
[Source "ChessBase"]
[SourceQuality "1"]
[TimeControl "40/5400+30:1800+30"]

1. d4 {[%emt 0:00:00]} d5 {[%emt 0:00:00]} 2. c4 {[%emt 0:00:00]} e6 {[%emt 0:00:00]} 3. Nc3 {[%emt 0:00:00]} Nf6 {[%emt 0:00:00]} 4. Bg5 {[%emt 0:00:00]} Be7 {[%emt 0:00:23]} 5. e3 {[%emt 0:00:10]} Nbd7 {[%emt 0:00:08]} 6. cxd5 {[%emt 0:00:17]} exd5 {[%emt 0:00:07]} 7. Bd3 {[%emt 0:00:06]} c6 {[%emt 0:00:31]} 8. Qc2 {[%emt 0:00:25]} h6 {[%emt 0:01:26]} 9. Bh4 {[%emt 0:00:13]} O-O {[%emt 0:00:12]} 10. Nge2 {[%emt 0:00:11]} Re8 {[%emt 0:01:22]} 11. f3 {[%emt 0:01:29]} c5 {[%emt 0:06:38]} 12. dxc5 {[%emt 0:03:27]} Nxc5 {[%emt 0:01:45]} 13. Bb5 {[%emt 0:01:23]} Rf8 $11 {[%emt 0:04:20]} 14. Nd4 {[%emt 0:03:22]} a6 {[%emt 0:05:59]} 15. Be2 {[%emt 0:01:00]} Be6 {[%emt 0:03:21]} 16. O-O {[%emt 0:01:53]} Qc7 {[%emt 0:09:09]} 17. b4 {[%emt 0:10:15]} Ncd7 {[%emt 0:03:18]} 18. Nxd5 {[%emt 0:03:36]} Nxd5 {[%emt 0:01:52]} 19. Qxc7 {[%emt 0:00:30]} Nxc7 {[%emt 0:00:01]} 20. Bxe7 {[%emt 0:01:04]} Rfe8 {[%emt 0:00:02]} 21. Bd6 {[%emt 0:06:16]} Nd5 {[%emt 0:01:15]} 22. Kf2 {[%emt 0:01:23]} Nc3 {[%emt 0:02:58]} 23. Bd3 {[%emt 0:02:22]} Nf6 {[%emt 0:06:03]} 24. a4 {[%emt 0:11:21]} Rad8 {[%emt 0:02:59]} 25. Bc7 {[%emt 0:03:26]} Rc8 {[%emt 0:00:52]} 26. Ba5 {[%emt 0:01:08]} Nfd5 {[%emt 0:01:46]} 27. b5 {[%emt 0:02:35]} b6 {[%emt 0:01:06]} 28. Bxc3 {[%emt 0:03:54]} Rxc3 {[%emt 0:01:45]} 29. Be4 {[%emt 0:07:32]} Nxe3 {[%emt 0:03:45]} 30. Rfe1 {[%emt 0:06:01]} Nc4 {[%emt 0:02:32]} 31. bxa6 {[%emt 0:00:21]} Nd6 {[%emt 0:00:42]} 32. Bc6 {[%emt 0:00:35]} Rc8 {[%emt 0:00:23]} 33. a7 {[%emt 0:00:29]} 1-0

[Event "WYCC 2018 O18"]
[Site "Halkidiki"]
[Date "2018.10.27"]
[Round "8"]
[White "Tifferet, Shaked"]
[Black "Polyakov, Fedor"]
[Result "1/2-1/2"]
[ECO "B31"]
[WhiteElo "2254"]
[BlackElo "2036"]
[Annotator "NA"]
[PlyCount "69"]
[EventDate "2018.10.20"]
[EventType "swiss"]
[EventCountry "GRE"]
[SourceTitle "playchess.com"]
[Source "ChessBase"]
[SourceQuality "1"]
[TimeControl "40/5400+30:1800+30"]

1. e4 {[%emt 0:00:00]} c5 {[%emt 0:00:27]} 2. Nf3 {[%emt 0:00:00]} Nc6 {[%emt 0:00:05]} 3. Bb5 {[%emt 0:00:00]} g6 {[%emt 0:00:06]} 4. c3 {[%emt 0:00:44]} Bg7 {[%emt 0:00:45]} 5. d4 {[%emt 0:00:24]} cxd4 {[%emt 0:01:57]} 6. cxd4 {[%emt 0:00:15]} Qb6 {[%emt 0:02:07]} 7. Nc3 {[%emt 0:00:28]} Nxd4 {[%emt 0:10:23]} 8. Nd5 {[%emt 0:01:33]} Nxf3+ $16 {[%emt 0:04:31]} 9. Qxf3 {[%emt 0:00:11]} Qd6 {[%emt 0:03:48]} 10. O-O {[%emt 0:20:25]} Nf6 {[%emt 0:03:40]} 11. Bf4 {[%emt 0:01:27]} e5 {[%emt 0:00:05]} 12. Bh6 {[%emt 0:00:11]} Bxh6 {[%emt 0:05:04]} 13. Nxf6+ {[%emt 0:00:21]} Ke7 {[%emt 0:00:29]} 14. Nd5+ {[%emt 0:00:30]} Kf8 {[%emt 0:02:16]} 15. Rad1 {[%emt 0:01:24]} Kg7 {[%emt 0:01:11]} 16. Qc3 {[%emt 0:01:42]} Rb8 {[%emt 0:01:56]} 17. f4 {[%emt 0:06:53]} b6 {[%emt 0:07:19]} 18. Kh1 {[%emt 0:01:46]} Rf8 {[%emt 0:08:52]} 19. fxe5 {[%emt 0:09:09]} Qc5 {[%emt 0:00:11]} 20. Bc4 {[%emt 0:00:08]} Kh8 {[%emt 0:02:34]} 21. b4 {[%emt 0:09:16]} Qc6 {[%emt 0:00:28]} 22. Rf6 {[%emt 0:12:50]} d6 {[%emt 0:08:37]} 23. b5 {[%emt 0:12:54]} Qc5 {[%emt 0:08:28]} 24. e6 {[%emt 0:13:45]} Bg7 {[%emt 0:00:23]} 25. e7 {[%emt 0:02:00]} Rg8 {[%emt 0:01:48]} 26. Qd3 {[%emt 0:01:53]} Be6 {[%emt 0:01:46]} 27. Rxe6 {[%emt 0:01:18]} fxe6 {[%emt 0:00:12]} 28. Nf4 {[%emt 0:00:06]} Rge8 {[%emt 0:02:02]} 29. Nxe6 {[%emt 0:02:46]} Qe5 {[%emt 0:02:00]} 30. Nd8 {[%emt 0:00:34]} Rbxd8 {[%emt 0:01:59]} 31. exd8=Q {[%emt 0:00:06]} Rxd8 {[%emt 0:00:08]} 32. Rf1 {[%emt 0:00:23]} Rf8 {[%emt 0:00:34]} 33. Rxf8+ {[%emt 0:00:23]} Bxf8 {[%emt 0:00:02]} 34. Qf1 {[%emt 0:00:18]} Bg7 {[%emt 0:01:42]} 35. Bd5 {[%emt 0:00:25]} 1/2-1/2

[Event "WYCC 2018 O18"]
[Site "Halkidiki"]
[Date "2018.10.27"]
[Round "8"]
[White "Liska, Jiri"]
[Black "Zhu, Brandon"]
[Result "1-0"]
[ECO "E63"]
[WhiteElo "2245"]
[BlackElo "1914"]
[Annotator "NA"]
[PlyCount "53"]
[EventDate "2018.10.20"]
[EventType "swiss"]
[EventCountry "GRE"]
[SourceTitle "playchess.com"]
[Source "ChessBase"]
[SourceQuality "1"]
[TimeControl "40/5400+30:1800+30"]

1. Nf3 {[%emt 0:00:00]} Nf6 {[%emt 0:00:00]} 2. c4 {[%emt 0:00:08]} g6 {[%emt 0:01:20]} 3. g3 {[%emt 0:02:00]} Bg7 {[%emt 0:00:20]} 4. Bg2 {[%emt 0:00:07]} O-O {[%emt 0:00:09]} 5. O-O {[%emt 0:00:49]} d6 {[%emt 0:00:08]} 6. d4 {[%emt 0:00:41]} Nc6 {[%emt 0:00:15]} 7. Nc3 {[%emt 0:00:19]} a6 {[%emt 0:00:23]} 8. e3 {[%emt 0:07:31]} Rb8 {[%emt 0:02:19]} 9. Qe2 {[%emt 0:02:52]} Bf5 $16 {[%emt 0:04:04]} (9... b5 $11 {keeps the balance.}) 10. d5 {[%emt 0:07:53]} Na7 {[%emt 0:02:40]} 11. e4 {[%emt 0:02:23]} Bg4 {[%emt 0:00:58]} 12. a4 {[%emt 0:03:50]} Nd7 {[%emt 0:02:02]} 13. h3 {[%emt 0:02:11]} Bxf3 {[%emt 0:00:07]} 14. Bxf3 {[%emt 0:00:28]} Bxc3 {[%emt 0:11:43]} 15. bxc3 {[%emt 0:00:22]} a5 {[%emt 0:02:57]} 16. Bh6 {[%emt 0:16:09]} Re8 {[%emt 0:00:57]} 17. Bg4 {[%emt 0:00:18]} e5 {[%emt 0:10:29]} 18. Kg2 {[%emt 0:12:07]} Nc5 {[%emt 0:03:36]} 19. h4 {[%emt 0:01:30]} Nc8 {[%emt 0:04:59]} 20. f4 {[%emt 0:03:31]} exf4 {[%emt 0:16:54]} 21. Rxf4 {[%emt 0:00:23]} f5 {[%emt 0:02:23]} 22. Raf1 {[%emt 0:09:36]} fxg4 {[%emt 0:11:17]} 23. Rf7 {[%emt 0:01:58]} Kh8 {[%emt 0:09:47]} 24. Qf2 {[%emt 0:02:15]} Nb6 {[%emt 0:04:16]} 25. Bg5 {[%emt 0:00:42]} Nbd7 {[%emt 0:03:56]} 26. Bxd8 {[%emt 0:00:55]} Rbxd8 {[%emt 0:00:09]} 27. Qf4 {[%emt 0:01:03]} 1-0

[Event "WYCC 2018 O18"]
[Site "Halkidiki"]
[Date "2018.10.27"]
[Round "8"]
[White "Alexakis, Dimitris"]
[Black "Pantzar, Milton"]
[Result "0-1"]
[ECO "B53"]
[WhiteElo "2186"]
[BlackElo "2326"]
[Annotator "NA"]
[PlyCount "156"]
[EventDate "2018.10.20"]
[EventType "swiss"]
[EventCountry "GRE"]
[SourceTitle "playchess.com"]
[Source "ChessBase"]
[SourceQuality "1"]
[TimeControl "40/5400+30:1800+30"]

1. e4 {[%emt 0:01:51]} c5 {[%emt 0:00:00]} 2. Nf3 {[%emt 0:01:05]} d6 {[%emt 0:00:31]} 3. d4 {[%emt 0:18:25]} cxd4 {[%emt 0:00:18]} 4. Qxd4 {[%emt 0:00:23]} Nc6 {[%emt 0:01:06]} 5. Bb5 {[%emt 0:00:58]} Bd7 $11 {[%emt 0:00:47] LiveBook: 2327 Games} 6. Bxc6 {[%emt 0:00:06]} Bxc6 {[%emt 0:00:44]} 7. Nc3 {[%emt 0:00:34]} Nf6 {[%emt 0:01:26]} 8. Bg5 {[%emt 0:00:10]} e6 {[%emt 0:02:17]} 9. O-O-O {[%emt 0:00:17]} Be7 {[%emt 0:02:25]} 10. Rhe1 {[%emt 0:00:09]} O-O {[%emt 0:05:33]} 11. Qd2 {[%emt 0:02:53]} Rc8 {[%emt 0:06:50]} 12. Nd4 {[%emt 0:23:12]} Qc7 {[%emt 0:27:41]} 13. f3 {[%emt 0:04:21]} Rfd8 {[%emt 0:01:35]} 14. g4 {[%emt 0:07:55]} a6 {[%emt 0:03:44]} 15. h4 {[%emt 0:12:52]} b5 {[%emt 0:04:29]} 16. Nce2 {[%emt 0:07:00]} Bb7 {[%emt 0:05:28]} 17. Kb1 {[%emt 0:08:20]} b4 {[%emt 0:09:44]} 18. Ng3 {[%emt 0:05:12]} a5 {[%emt 0:10:31]} 19. Nh5 {[%emt 0:01:52]} Ne8 {[%emt 0:00:57]} 20. Bxe7 {[%emt 0:01:34]} Qxe7 {[%emt 0:00:02]} 21. g5 {[%emt 0:00:38]} g6 {[%emt 0:06:20]} 22. Nf4 {[%emt 0:00:28]} Nc7 {[%emt 0:03:16]} 23. Nd3 {[%emt 0:00:39]} e5 {[%emt 0:00:33]} 24. Nb3 {[%emt 0:00:11]} Ne6 {[%emt 0:00:18]} 25. Nxa5 {[%emt 0:00:51]} Nd4 {[%emt 0:01:40]} 26. Nxb7 {[%emt 0:00:31]} Qxb7 {[%emt 0:03:23]} 27. Qxb4 {[%emt 0:00:29]} Qa6 {[%emt 0:00:50]} 28. c3 {[%emt 0:00:30]} Rb8 {[%emt 0:00:38]} 29. cxd4 {[%emt 0:00:17]} Rxb4 {[%emt 0:00:06]} 30. Nxb4 {[%emt 0:00:06]} Qc4 {[%emt 0:00:33]} 31. a3 {[%emt 0:00:58]} exd4 {[%emt 0:00:40]} 32. Rd3 {[%emt 0:00:27]} Qc8 {[%emt 0:00:51]} 33. Rh1 {[%emt 0:00:39]} Qc5 {[%emt 0:00:38]} 34. Rc1 {[%emt 0:00:23]} Qb5 {[%emt 0:00:23]} 35. Rxd4 {[%emt 0:00:10]} Qe2 {[%emt 0:00:22]} 36. f4 {[%emt 0:00:54]} Qf2 {[%emt 0:00:08]} 37. Rcd1 {[%emt 0:00:33]} Qxf4 {[%emt 0:00:23]} 38. Nc6 {[%emt 0:00:34]} Re8 {[%emt 0:00:18]} 39. e5 {[%emt 0:00:26]} Qf5+ {[%emt 0:01:15]} 40. Ka1 {[%emt 0:00:00]} d5 {[%emt 0:00:00]} 41. Rxd5 {[%emt 0:12:00]} Kg7 {[%emt 0:05:12]} 42. Rd7 {[%emt 0:14:19]} Qf3 {[%emt 0:15:08]} 43. Nd8 {[%emt 0:01:25]} Re7 {[%emt 0:00:12]} 44. Ka2 {[%emt 0:04:24]} Kg8 {[%emt 0:05:18]} 45. R7d6 {[%emt 0:00:56]} Rxe5 {[%emt 0:01:28]} 46. Nc6 {[%emt 0:00:19]} Re8 {[%emt 0:00:54]} 47. R1d3 {[%emt 0:00:33]} Qh1 {[%emt 0:01:29]} 48. R3d4 {[%emt 0:00:35]} Kg7 {[%emt 0:01:36]} 49. Nb4 {[%emt 0:00:25]} Re4 {[%emt 0:00:28]} 50. a4 {[%emt 0:00:36]} Qxh4 {[%emt 0:00:34]} 51. Rxe4 {[%emt 0:00:28]} Qxe4 {[%emt 0:00:01]} 52. Rb6 {[%emt 0:00:30]} Qe3 {[%emt 0:02:05]} 53. Rb5 {[%emt 0:00:16]} Qe8 {[%emt 0:00:41]} 54. Ka3 {[%emt 0:00:31]} h5 {[%emt 0:00:27]} 55. gxh6+ {[%emt 0:00:22]} Kxh6 {[%emt 0:00:01]} 56. Rd5 {[%emt 0:00:46]} f5 {[%emt 0:00:29]} 57. a5 {[%emt 0:00:18]} f4 {[%emt 0:00:10]} 58. Nd3 {[%emt 0:00:47]} f3 {[%emt 0:00:35]} 59. a6 {[%emt 0:00:31]} Qe3 {[%emt 0:02:21]} 60. Kb4 {[%emt 0:00:32]} Qb6+ {[%emt 0:00:37]} 61. Kc3 {[%emt 0:00:25]} f2 {[%emt 0:00:49]} 62. Nxf2 {[%emt 0:00:27]} Qxf2 {[%emt 0:00:03]} 63. b4 {[%emt 0:00:30]} g5 {[%emt 0:01:29]} 64. Rc5 {[%emt 0:00:37]} Qe1+ {[%emt 0:00:18]} 65. Kc4 {[%emt 0:00:32]} Qe2+ {[%emt 0:00:09]} 66. Kd5 {[%emt 0:00:02]} Qd3+ {[%emt 0:00:12]} 67. Kc6 {[%emt 0:00:54]} Qxa6+ {[%emt 0:00:06]} 68. Kc7 {[%emt 0:00:07]} Qa7+ {[%emt 0:00:26]} 69. Kc6 {[%emt 0:00:05]} g4 {[%emt 0:00:37]} 70. b5 {[%emt 0:00:19]} Qxc5+ {[%emt 0:00:35]} 71. Kxc5 {[%emt 0:00:05]} g3 {[%emt 0:00:03]} 72. b6 {[%emt 0:00:02]} g2 {[%emt 0:00:03]} 73. b7 {[%emt 0:00:03]} g1=Q+ {[%emt 0:00:06]} 74. Kc6 {[%emt 0:00:08]} Qg3 {[%emt 0:00:09]} 75. Kd7 {[%emt 0:00:04]} Qb8 {[%emt 0:00:05]} 76. Kc6 Kg6 {[%emt 0:00:05]} 77. Kb6 {[%emt 0:00:06]} Kf6 {[%emt 0:00:05]} 78. Kc6 {[%emt 0:00:02]} Ke6 {[%emt 0:00:07]} 0-1

[Event "WYCC 2018 O18"]
[Site "Halkidiki"]
[Date "2018.10.27"]
[Round "8"]
[White "Lindbol, Aleksander"]
[Black "Ioannidis, Evgenios"]
[Result "1/2-1/2"]
[ECO "B90"]
[WhiteElo "2166"]
[BlackElo "2407"]
[Annotator "NA"]
[PlyCount "98"]
[EventDate "2018.10.20"]
[EventType "swiss"]
[EventCountry "GRE"]
[SourceTitle "playchess.com"]
[Source "ChessBase"]
[SourceQuality "1"]
[TimeControl "40/5400+30:1800+30"]

1. e4 {[%emt 0:00:00]} c5 {[%emt 0:00:00]} 2. Nf3 {[%emt 0:00:00]} d6 {[%emt 0:00:26]} 3. d4 {[%emt 0:00:21]} cxd4 {[%emt 0:00:45]} 4. Nxd4 {[%emt 0:00:08]} Nf6 {[%emt 0:00:16]} 5. Nc3 {[%emt 0:00:14]} a6 {[%emt 0:00:29]} 6. f3 {[%emt 0:00:31]} e6 {[%emt 0:00:45]} 7. Be3 {[%emt 0:04:41]} b5 {[%emt 0:00:59]} 8. Qd2 {[%emt 0:01:58]} Nbd7 {[%emt 0:01:08]} 9. O-O-O {[%emt 0:03:12]} Bb7 {[%emt 0:01:09]} 10. g4 {[%emt 0:03:15]} Nb6 {[%emt 0:01:07]} 11. a3 {[%emt 0:08:56] LiveBook: 38 Games} Be7 {[%emt 0:01:54]} 12. h4 {[%emt 0:16:24]} Rc8 {[%emt 0:03:25]} 13. h5 $15 {[%emt 0:04:08]} (13. g5 $11 Nfd7 14. h5) 13... h6 {[%emt 0:10:31]} 14. g5 {[%emt 0:15:55]} hxg5 {[%emt 0:00:06]} 15. Bxg5 {[%emt 0:00:12]} Nxh5 {[%emt 0:01:36]} 16. Bxe7 {[%emt 0:06:29]} Qxe7 {[%emt 0:00:06]} 17. f4 {[%emt 0:02:10]} d5 {[%emt 0:10:28]} 18. exd5 {[%emt 0:06:31]} Nxd5 {[%emt 0:06:52]} 19. Nxd5 {[%emt 0:01:18]} Bxd5 20. Nf5 {[%emt 0:01:15]} exf5 {[%emt 0:27:15]} 21. Qxd5 {[%emt 0:00:11]} Rd8 {[%emt 0:00:34]} 22. Qf3 {[%emt 0:16:54]} Rxd1+ {[%emt 0:02:45]} 23. Qxd1 {[%emt 0:00:06]} Rh6 {[%emt 0:04:55]} 24. Rxh5 {[%emt 0:02:25]} Qe3+ {[%emt 0:00:06]} 25. Kb1 {[%emt 0:00:03]} Rxh5 {[%emt 0:00:05]} 26. Qxh5 {[%emt 0:00:04]} Qe1+ {[%emt 0:00:02]} 27. Ka2 {[%emt 0:00:07]} Qxf1 {[%emt 0:00:04]} 28. Qxf5 {[%emt 0:00:09]} Qc4+ {[%emt 0:00:17]} 29. b3 {[%emt 0:00:29]} Qe6 {[%emt 0:00:35]} 30. Qc5 {[%emt 0:01:06]} g6 {[%emt 0:01:52]} 31. Qd4 {[%emt 0:00:55]} Ke7 {[%emt 0:00:34]} 32. a4 {[%emt 0:01:45]} Qc6 {[%emt 0:03:57]} 33. Qe5+ {[%emt 0:01:43]} Kd7 {[%emt 0:00:26]} 34. Qd4+ {[%emt 0:01:01]} Kc8 {[%emt 0:01:30]} 35. axb5 {[%emt 0:01:28]} Qxc2+ {[%emt 0:02:38]} 36. Ka3 {[%emt 0:00:05]} a5 {[%emt 0:04:30]} 37. b6 {[%emt 0:00:44]} Kb7 {[%emt 0:02:18]} 38. Qd7+ {[%emt 0:00:08]} Kxb6 {[%emt 0:00:04]} 39. Qxf7 {[%emt 0:00:05]} Qe4 {[%emt 0:01:05]} 40. Qf8 {[%emt 0:00:00]} Qc6 {[%emt 0:00:00]} 41. Qd8+ {[%emt 0:01:54]} Ka6 {[%emt 0:04:18]} 42. Qd4 {[%emt 0:01:08]} Qe6 {[%emt 0:07:55]} 43. Ka4 {[%emt 0:02:43]} Qe8+ {[%emt 0:00:30]} 44. Ka3 {[%emt 0:00:07]} Qc6 {[%emt 0:00:04]} 45. Qe5 {[%emt 0:00:31]} Kb6 {[%emt 0:01:30]} 46. Qb8+ {[%emt 0:01:07]} Kc5 {[%emt 0:00:34]} 47. Qe5+ {[%emt 0:00:06]} Kb6 {[%emt 0:00:03]} 48. Qb8+ {[%emt 0:00:06]} Kc5 {[%emt 0:00:20]} 49. Qe5+ {[%emt 0:00:07]} Kb6 {[%emt 0:00:05]} 1/2-1/2

[Event "WYCC 2018 O18"]
[Site "Halkidiki"]
[Date "2018.10.27"]
[Round "8"]
[White "Pedoson, Georg Aleksander"]
[Black "Szabo, Marton Mihaly"]
[Result "1-0"]
[ECO "A10"]
[WhiteElo "2162"]
[BlackElo "2307"]
[Annotator "NA"]
[PlyCount "109"]
[EventDate "2018.10.20"]
[EventType "swiss"]
[EventCountry "GRE"]
[SourceTitle "playchess.com"]
[Source "ChessBase"]
[SourceQuality "1"]
[TimeControl "40/5400+30:1800+30"]

1. c4 {[%emt 0:00:00]} b6 {[%emt 0:00:00]} 2. Nc3 {[%emt 0:00:00]} Bb7 {[%emt 0:00:00]} 3. d4 {[%emt 0:01:06]} e6 {[%emt 0:00:14]} 4. e4 {[%emt 0:04:07]} Bb4 {[%emt 0:00:26]} 5. Bd3 {[%emt 0:00:20]} f5 6. f3 {[%emt 0:01:56]} Qh4+ {[%emt 0:01:02]} 7. g3 {[%emt 0:00:41]} Qh5 {[%emt 0:00:19]} 8. d5 {[%emt 0:12:37]} (8. exf5 $14 exf5 9. Kf1) 8... fxe4 {[%emt 0:22:42]} 9. fxe4 {[%emt 0:00:25]} Qxd1+ {[%emt 0:00:17]} 10. Kxd1 {[%emt 0:00:06]} Bxc3 $15 {[%emt 0:01:02]} 11. bxc3 {[%emt 0:00:06]} Nf6 {[%emt 0:12:59]} 12. Nf3 {[%emt 0:03:56]} O-O {[%emt 0:08:00]} 13. Rf1 {[%emt 0:03:42]} exd5 {[%emt 0:08:56]} 14. cxd5 {[%emt 0:03:22]} Re8 {[%emt 0:04:13]} 15. Re1 {[%emt 0:04:08]} d6 {[%emt 0:01:48]} 16. Bf4 {[%emt 0:05:47]} Nbd7 {[%emt 0:02:57]} 17. Kc2 {[%emt 0:00:15]} Nc5 {[%emt 0:02:09]} 18. Nd2 {[%emt 0:00:11]} h6 {[%emt 0:02:00]} 19. h4 {[%emt 0:02:55]} Re7 {[%emt 0:03:29]} 20. Re3 {[%emt 0:05:52]} Rae8 {[%emt 0:14:34]} 21. Rae1 {[%emt 0:00:38]} Bc8 {[%emt 0:04:00]} 22. c4 {[%emt 0:02:43]} Bg4 {[%emt 0:02:48]} 23. e5 {[%emt 0:02:12]} Nxd3 {[%emt 0:01:26]} 24. Kxd3 {[%emt 0:00:05]} Bf5+ {[%emt 0:00:25]} 25. Kd4 {[%emt 0:00:54]} Ng4 {[%emt 0:01:16]} 26. R3e2 {[%emt 0:00:51]} dxe5+ {[%emt 0:04:37]} 27. Bxe5 {[%emt 0:00:09]} Bg6 {[%emt 0:01:07]} 28. Nb3 {[%emt 0:04:04]} a5 {[%emt 0:00:38]} 29. Nc1 {[%emt 0:00:45]} Rd8 {[%emt 0:00:31]} 30. Bf4 {[%emt 0:00:52]} Red7 {[%emt 0:00:33]} 31. Re7 {[%emt 0:00:47]} Kf8 {[%emt 0:00:11]} 32. R7e6 {[%emt 0:00:52]} Nf6 {[%emt 0:00:44]} 33. Bxh6 {[%emt 0:03:05]} Nxd5 {[%emt 0:00:28]} 34. cxd5 {[%emt 0:00:05]} Rxd5+ {[%emt 0:00:15]} 35. Kc3 {[%emt 0:00:24]} Rc5+ {[%emt 0:00:44]} 36. Kb2 {[%emt 0:00:28]} Bf7 {[%emt 0:00:33]} 37. Bg5 {[%emt 0:00:37]} Rb5+ {[%emt 0:00:22]} 38. Ka3 {[%emt 0:00:17]} Rd4 {[%emt 0:00:39]} 39. R6e4 {[%emt 0:00:32]} Rd7 {[%emt 0:00:27]} 40. R1e3 {[%emt 0:00:00]} Rd1 {[%emt 0:00:00]} 41. Rc3 {[%emt 0:01:57]} c5 {[%emt 0:01:11]} 42. Rd3 {[%emt 0:04:10]} Rxd3+ {[%emt 0:00:16]} 43. Nxd3 {[%emt 0:00:03]} Rb1 {[%emt 0:01:11]} 44. Ne5 {[%emt 0:00:10]} Be8 {[%emt 0:00:47]} 45. Rf4+ {[%emt 0:09:11]} Kg8 {[%emt 0:00:06]} 46. Be7 {[%emt 0:00:06]} Kh7 {[%emt 0:00:49]} 47. Rf8 {[%emt 0:02:55]} Re1 {[%emt 0:03:51]} 48. Bd6 {[%emt 0:00:30]} Re3+ {[%emt 0:04:03]} 49. Kb2 {[%emt 0:00:05]} Re2+ {[%emt 0:00:32]} 50. Kc3 {[%emt 0:00:06]} Ba4 {[%emt 0:00:25]} 51. g4 {[%emt 0:01:12]} Bc2 {[%emt 0:04:08]} 52. h5 {[%emt 0:11:34]} g6 {[%emt 0:02:28]} 53. Rf7+ {[%emt 0:00:59]} Kh6 {[%emt 0:01:21]} 54. Bf8+ {[%emt 0:05:12]} Kg5 {[%emt 0:00:18]} 55. Be7+ {[%emt 0:00:04]} 1-0

[Event "WYCC 2018 O18"]
[Site "Halkidiki"]
[Date "2018.10.27"]
[Round "8"]
[White "Dallemagne, Maximilien"]
[Black "Bratkovic, Jakob"]
[Result "1-0"]
[ECO "A46"]
[WhiteElo "2094"]
[BlackElo "2242"]
[Annotator "NA"]
[PlyCount "97"]
[EventDate "2018.10.20"]
[EventType "swiss"]
[EventCountry "GRE"]
[SourceTitle "playchess.com"]
[Source "ChessBase"]
[SourceQuality "1"]
[TimeControl "40/5400+30:1800+30"]

1. d4 {[%emt 0:00:00]} Nf6 {[%emt 0:03:15]} 2. Nf3 {[%emt 0:00:00]} e6 {[%emt 0:00:53]} 3. g3 {[%emt 0:00:00]} b6 {[%emt 0:02:33]} 4. Bg2 {[%emt 0:00:13]} Bb7 {[%emt 0:00:05]} 5. O-O {[%emt 0:00:12]} c5 6. e3 {[%emt 0:04:30]} Be7 {[%emt 0:03:12]} 7. Nc3 {[%emt 0:04:12]} O-O {[%emt 0:04:15]} 8. Re1 {[%emt 0:02:49]} d5 {[%emt 0:13:02]} 9. Ne5 {[%emt 0:05:40]} Nbd7 {[%emt 0:01:48]} 10. Nxd7 {[%emt 0:09:41]} Qxd7 {[%emt 0:04:11]} 11. Ne2 {[%emt 0:04:02]} cxd4 {[%emt 0:09:17]} 12. exd4 {[%emt 0:00:38]} Rfc8 {[%emt 0:00:18]} 13. Nf4 {[%emt 0:04:46]} b5 {[%emt 0:00:54]} 14. Bh3 {[%emt 0:09:11]} Kh8 {[%emt 0:01:46]} 15. Nxe6 {[%emt 0:05:38]} fxe6 {[%emt 0:00:29]} 16. Bxe6 {[%emt 0:00:02]} Qc7 {[%emt 0:12:58]} 17. Bf4 {[%emt 0:02:51]} Bd6 {[%emt 0:01:13]} 18. Bxc8 {[%emt 0:01:39]} Rxc8 {[%emt 0:00:00]} 19. Bxd6 {[%emt 0:03:48]} Qxd6 {[%emt 0:07:23]} 20. a3 {[%emt 0:00:30]} Ne4 {[%emt 0:03:34]} 21. Kg2 {[%emt 0:15:24]} Qd7 {[%emt 0:00:12]} 22. f3 {[%emt 0:00:30]} Ng5 {[%emt 0:00:30]} 23. Re3 {[%emt 0:01:39]} h6 {[%emt 0:08:49]} 24. Qe2 {[%emt 0:00:59]} Rf8 {[%emt 0:04:13]} 25. Re1 {[%emt 0:08:11]} Bc6 {[%emt 0:09:32]} 26. g4 {[%emt 0:08:33]} h5 {[%emt 0:01:45]} 27. Re7 {[%emt 0:01:32]} Qd6 {[%emt 0:01:57]} 28. Qe5 {[%emt 0:00:59]} Qxe5 {[%emt 0:00:20]} 29. R1xe5 {[%emt 0:00:17]} Nxf3 {[%emt 0:00:03]} 30. Rxh5+ {[%emt 0:00:57]} Kg8 {[%emt 0:02:38]} 31. c3 a5 32. Kg3 {[%emt 0:02:13]} b4 {[%emt 0:01:11]} 33. axb4 {[%emt 0:01:12]} axb4 {[%emt 0:00:04]} 34. Rf5 {[%emt 0:00:23]} Rxf5 {[%emt 0:01:24]} 35. gxf5 {[%emt 0:00:02]} Nd2 {[%emt 0:00:06]} 36. cxb4 {[%emt 0:01:14]} Nb3 {[%emt 0:00:03]} 37. Kf4 {[%emt 0:00:44]} Nxd4 {[%emt 0:00:19]} 38. Ke5 {[%emt 0:01:05]} Nc2 {[%emt 0:00:24]} 39. Kd6 {[%emt 0:00:48]} Ba4 {[%emt 0:01:58]} 40. Ra7 {[%emt 0:00:00]} Bb3 {[%emt 0:00:00]} 41. b5 {[%emt 0:09:55]} d4 {[%emt 0:04:45]} 42. b6 {[%emt 0:03:30]} d3 {[%emt 0:00:04]} 43. Kc5 {[%emt 0:00:25]} Bd5 {[%emt 0:01:10]} 44. Rd7 {[%emt 0:00:49]} Ne3 {[%emt 0:00:06]} 45. Rxd5 {[%emt 0:08:30]} Nxd5 {[%emt 0:00:13]} 46. b7 {[%emt 0:00:01]} d2 {[%emt 0:00:07]} 47. b8=Q+ {[%emt 0:00:07]} Kh7 {[%emt 0:00:03]} 48. Qb3 {[%emt 0:00:14]} Ne3 {[%emt 0:00:02]} 49. f6 {[%emt 0:00:15]} 1-0